bitfinex-derivatives/quotes_ETHF0:USTF0_20241230
["timestamp","ask_amount","ask_price","bid_price","bid_amount"]
[1735552442234,0.72791,3425.9,3425.5,1.45343]
[1735552442633,0.72791,3425.9,3425.5,1.161]
[1735552442933,0.29242,3425.8,3425.5,1.161]
[1735552443128,0.4355,3425.9,3425.5,1.161]
[1735552443327,0.43874125,3425.8,3425.5,1.161]
[1735552443527,0.43874125,3425.8,3425.5,1.45344]
[1735552443928,0.73115125,3425.8,3425.5,1.45344]
[1735552444128,0.43874125,3425.8,3425.5,1.45343]
[1735552444529,0.43874125,3425.8,3425.5,1.161]
[1735552444730,0.43874125,3425.8,3425.6,0.29243]
[1735552444931,0.43874125,3425.8,3425.5,1.161]
[1735552445535,0.43874125,3425.8,3425.6,0.29242]
[1735552445735,0.43874125,3425.8,3425.7,0.29242]
[1735552445936,0.73115125,3425.8,3425.5,1.161]
[1735552446140,0.43874125,3425.8,3425.7,0.29242]
[1735552450835,0.89450418,3425.8,3425.7,0.29242]
[1735552451039,0.43874125,3425.8,3425.7,0.29242]
[1735552453149,3.2078,3426.0,3425.7,4.58119236]
[1735552453345,3.2078,3426.0,3425.9,0.2924]
[1735552454841,3.2078,3426.0,3425.7,4.58119236]
[1735552455053,0.29241,3425.8,3425.7,4.58119236]
[1735552455543,1.13601,3425.8,3425.7,4.58119236]
[1735552455948,8.46674803,3425.8,3425.7,0.96589236]
[1735552456245,0.29243,3425.6,3425.5,5.7823809]
[1735552456549,3.50023,3425.6,3425.5,5.7823809]
[1735552457451,0.29247,3425.2,3425.0,0.29248]
[1735552457652,3.50027,3425.1,3425.0,0.29248]
[1735552458045,3.50027,3425.1,3424.5,1.161]
[1735552458247,3.2078,3425.1,3424.5,1.161]
[1735552458445,0.29248,3425.0,3424.8,0.29249]
[1735552458641,0.29248,3425.0,3424.5,1.161]
[1735552458847,0.29249,3424.9,3424.7,0.2925]
[1735552459253,0.4326,3424.8,3424.5,1.161]
[1735552459454,0.4326,3424.8,3424.6,0.29251]
[1735552459752,0.4326,3424.8,3424.5,1.161]
[1735552459950,0.4326,3424.8,3424.7,0.2925]
[1735552460347,0.8298,3425.0,3424.9,0.29249]
[1735552460348,0.4151,3425.0,3424.9,0.29249]
[1735552460855,0.4151,3425.0,3424.8,0.29249]
[1735552461048,0.4151,3425.0,3424.6,2.33073803]
[1735552461255,0.4151,3425.0,3424.8,0.2925]
[1735552461657,0.4151,3425.0,3424.6,2.33073803]
[1735552461856,0.4151,3425.0,3424.9,0.29249]
[1735552462753,3.2078,3425.1,3425.0,0.29248]
[1735552463055,4.39274853,3425.6,3425.2,0.29246]
[1735552463250,4.39274853,3425.6,3425.0,0.4546]
[1735552463251,4.0799,3425.6,3425.0,0.4546]
[1735552463448,4.0799,3425.6,3425.4,0.29244]
[1735552463656,4.37233,3425.6,3425.0,4.5408]
[1735552463857,4.37233,3425.6,3425.2,0.29246]
[1735552464654,0.29244,3425.5,3425.2,0.29246]
[1735552464959,4.0799,3425.6,3425.0,1.333]
[1735552465161,3.2078,3425.1,3424.9,0.29248]
[1735552465457,3.50027,3425.1,3424.8,0.29249]
[1735552466758,3.2078,3425.1,3424.8,0.29249]
[1735552467357,3.2078,3425.1,3425.0,0.29248]
[1735552467854,3.2078,3425.1,3424.9,0.29248]
[1735552468055,3.2078,3425.1,3424.8,0.29249]
[1735552468358,3.2078,3425.1,3424.9,0.29249]
[1735552468556,3.2078,3425.1,3424.8,0.29249]
[1735552469055,0.4515,3425.0,3424.7,0.2925]
[1735552469956,0.74398,3425.0,3424.6,2.62324803]
[1735552470157,1.16678,3425.0,3424.6,2.62324803]
[1735552470350,1.16678,3425.0,3424.7,0.2925]
[1735552470552,0.8743,3425.0,3424.7,0.2925]
[1735552470760,1.16678,3425.0,3424.6,2.62324803]
[1735552470959,0.8743,3425.0,3424.6,2.33073803]
[1735552471158,0.8743,3425.0,3424.7,0.2925]
[1735552472058,0.8743,3425.0,3424.5,5.249]
[1735552472261,0.8743,3425.0,3424.7,0.2925]
[1735552472558,0.8743,3425.0,3424.5,5.249]
[1735552472559,0.2925,3424.8,3424.5,4.088]
[1735552473654,0.8743,3425.0,3424.5,3.2078]
[1735552473850,0.8743,3425.0,3424.1,9.16238472]
[1735552473851,0.29252,3424.5,3424.3,1.161]
[1735552474155,0.8626,3424.4,3424.3,1.161]
[1735552474556,0.8626,3424.4,3424.1,9.16238472]
[1735552474856,0.73094,3424.3,3424.0,3.95586]
[1735552476264,0.4384,3424.3,3424.0,3.2078]
[1735552476463,0.29255,3424.2,3424.0,3.2078]
[1735552478366,0.73094,3424.3,3424.0,3.2078]
[1735552478564,0.4384,3424.3,3424.0,3.2078]
[1735552478771,3.2078,3424.1,3423.7,0.4276]
[1735552479065,3.50036,3424.1,3423.7,0.72018]
[1735552479266,3.2078,3424.1,3423.7,0.4276]
[1735552479456,3.2078,3424.1,3423.7,2.75833803]
[1735552479766,3.2078,3424.1,3424.0,0.29256]
[1735552480164,0.4384,3424.3,3424.2,0.29255]
[1735552481066,0.4384,3424.3,3423.7,2.75833803]
[1735552481565,0.4384,3424.3,3424.2,0.29255]
[1735552481966,0.4384,3424.3,3424.0,0.29256]
[1735552482167,0.73094,3424.3,3424.0,0.29256]
[1735552482363,0.4384,3424.3,3423.7,2.75833803]
[1735552482675,0.29256,3424.1,3423.8,0.29258]
[1735552482863,0.4502,3424.4,3424.3,0.29254]
[1735552483071,0.8282,3424.7,3424.3,2.62326803]
[1735552483265,0.8282,3424.7,3423.8,3.2078]
[1735552483266,0.8282,3424.7,3424.4,0.4114]
[1735552483583,0.29254,3424.3,3423.9,1.16207]
[1735552483867,0.71615,3424.2,3423.9,0.8695]
[1735552484268,0.4236,3424.2,3423.9,0.8695]
[1735552484565,0.71615,3424.2,3423.9,0.4144]
[1735552484767,0.4132,3424.1,3423.9,0.4144]
[1735552486474,0.4132,3424.1,3423.8,0.4114]
[1735552486662,0.4466,3424.0,3423.8,0.70398]
[1735552486859,0.4466,3424.0,3423.8,0.4114]
[1735552487668,0.4466,3424.0,3423.8,0.70398]
[1735552488976,0.4466,3424.0,3423.9,0.29257]
[1735552490271,0.4132,3424.1,3423.8,0.4114]
[1735552490473,3.2078,3424.3,3424.2,0.29255]
[1735552492076,3.2078,3424.3,3424.1,0.29255]
[1735552492868,3.2078,3424.3,3424.2,0.29255]
[1735552495777,3.2078,3424.3,3424.1,0.29255]
[1735552496273,0.4306,3424.2,3424.1,0.29255]
[1735552497072,0.4306,3424.2,3423.8,1.5724]
[1735552497272,0.8711,3424.2,3423.8,1.5724]
[1735552497475,0.8711,3424.2,3424.1,0.29256]
[1735552497967,0.8711,3424.2,3424.0,0.29256]
[1735552498173,0.8711,3424.2,3423.8,0.4114]
[1735552498376,0.29256,3424.1,3423.8,0.70398]
[1735552498765,0.4537,3424.0,3423.8,0.70398]
[1735552499768,0.4537,3424.0,3423.8,0.4114]
[1735552499975,0.8711,3424.2,3423.8,0.4114]
[1735552500174,0.8711,3424.2,3424.0,0.29256]
[1735552500374,0.8711,3424.2,3423.8,0.4114]
[1735552500575,0.4306,3424.2,3424.1,0.29256]
[1735552501669,3.2078,3424.3,3424.2,0.29255]
[1735552503372,3.50034,3424.3,3424.2,0.29255]
[1735552503576,3.2078,3424.3,3424.2,0.29255]
[1735552506275,3.2078,3424.3,3423.8,0.4114]
[1735552506464,1.61665,3424.2,3424.1,0.29255]
[1735552506667,0.29256,3424.1,3423.9,0.29257]
[1735552506872,1.3241,3424.2,3423.8,0.4114]
[1735552507073,0.29255,3424.1,3423.8,0.4114]
[1735552507269,1.61665,3424.2,3424.1,0.29255]
[1735552507672,1.61665,3424.2,3424.0,0.29256]
[1735552507875,0.29255,3424.1,3423.9,0.29257]
[1735552508068,1.3241,3424.2,3423.9,0.29257]
[1735552508274,0.29256,3424.1,3423.9,0.29257]
[1735552509076,1.3241,3424.2,3423.8,0.4114]
[1735552509575,1.61665,3424.2,3424.0,0.29256]
[1735552510777,3.2078,3424.3,3423.8,0.4114]
[1735552510973,3.2078,3424.3,3424.2,0.29255]
[1735552512079,3.44265483,3424.5,3424.4,0.29253]
[1735552512775,3.44265483,3424.5,3424.4,1.19053]
[1735552513078,3.2078,3424.7,3424.5,0.29251]
[1735552513281,3.50031,3424.7,3424.5,0.29251]
[1735552514075,6.94296483,3424.7,3424.5,0.29252]
[1735552514476,6.65045483,3424.7,3424.4,0.898]
[1735552514773,6.65045483,3424.7,3424.3,1.161]
[1735552514978,0.29253,3424.4,3424.3,1.161]
[1735552516074,0.29253,3424.4,3424.2,0.29254]
[1735552516280,0.29253,3424.4,3424.2,0.29255]
[1735552516581,4.17409465,3424.4,3424.2,0.29255]
[1735552517179,4.17410465,3424.4,3424.2,0.29255]
[1735552517777,0.29254,3424.4,3424.2,0.29255]
[1735552517975,0.29254,3424.3,3424.1,7.60009697]
[1735552519977,0.29254,3424.3,3424.1,7.30754697]
[1735552520182,3.73519483,3424.3,3424.2,0.29255]
[1735552520381,3.44265483,3424.3,3424.2,0.29255]
[1735552521484,3.8815752,3424.3,3424.2,0.29255]
[1735552522971,3.2078,3424.5,3424.4,0.29253]
[1735552523174,3.2078,3424.5,3424.4,2.62326803]
[1735552524277,3.2078,3424.5,3424.4,15.86309429]
[1735552525477,3.44265483,3424.9,3424.8,0.29249]
[1735552525672,6.65045483,3425.0,3424.8,0.29249]
[1735552525879,3.44265483,3425.0,3424.9,1.15179]
[1735552527383,3.44265483,3425.1,3425.0,0.29248]
[1735552528580,5.03177758,3425.3,3424.9,0.8593]
[1735552528581,3.44265483,3425.2,3424.9,0.8593]
[1735552528785,3.44265483,3425.2,3425.1,0.29247]
[1735552530887,3.88147899,3425.3,3425.1,0.29247]
[1735552531786,3.88147899,3425.3,3425.2,0.29246]
[1735552532088,3.44265483,3425.3,3425.2,0.29246]
[1735552532288,3.44265483,3425.3,3424.9,0.8593]
[1735552532489,3.44265483,3425.3,3425.1,0.29246]
[1735552533286,3.88147899,3425.3,3425.1,0.29246]
[1735552533888,3.88147899,3425.3,3424.9,0.8593]
[1735552534086,3.88147899,3425.3,3425.2,0.29246]
[1735552534386,3.44265483,3425.3,3425.2,0.29246]
[1735552537489,3.44265483,3425.3,3425.2,0.74526]
[1735552537990,5.74130002,3425.7,3425.5,0.29243]
[1735552537991,3.44265483,3425.7,3425.5,0.29243]
[1735552538191,3.44265483,3425.7,3425.6,0.8953]
[1735552539093,3.89812889,3425.8,3425.6,0.8953]
[1735552539289,3.89813246,3425.8,3425.6,0.8953]
[1735552539490,4.35361091,3425.8,3425.6,0.8953]
[1735552539690,0.29242,3425.7,3425.5,0.29243]
[1735552539894,4.64600485,3425.8,3425.5,0.29243]
[1735552540089,4.64600485,3425.8,3425.6,0.29243]
[1735552540794,3.89813246,3425.8,3425.6,0.29243]
[1735552540995,4.35359485,3425.8,3425.6,0.29243]
[1735552541293,3.89813246,3425.8,3425.6,0.29243]
[1735552541493,4.64598865,3425.8,3425.6,0.29243]
[1735552541693,1.20333382,3425.8,3425.6,0.29243]
[1735552542088,0.74788763,3425.8,3425.6,0.29243]
[1735552542489,1.20332446,3425.8,3425.6,0.29243]
[1735552542698,0.29242,3425.7,3425.5,0.29243]
[1735552542892,1.20332446,3425.8,3425.6,0.29243]
[1735552543092,0.74788763,3425.8,3425.6,0.29243]
[1735552543387,0.45547763,3425.8,3425.5,0.29243]
[1735552543693,0.74788763,3425.8,3425.6,0.29242]
[1735552544796,0.45547763,3425.8,3425.4,1.165]
[1735552544990,0.29243,3425.6,3425.4,1.45744]
[1735552545599,0.4513,3425.5,3425.4,1.45744]
[1735552546395,0.45547763,3425.8,3425.6,0.29242]
[1735552546589,0.90677763,3425.8,3425.6,0.29242]
[1735552547698,0.4513,3425.8,3425.7,0.29242]
[1735552548493,0.74371,3425.8,3425.6,0.29242]
[1735552548693,1.19923279,3425.8,3425.6,0.29242]
[1735552548894,0.63834382,3425.7,3425.6,0.29242]
[1735552549197,0.74371,3425.8,3425.6,0.29242]
[1735552549499,0.18282103,3425.7,3425.6,0.29242]
[1735552550094,0.63847476,3425.7,3425.6,0.29242]
[1735552550293,0.18282103,3425.7,3425.6,0.29242]
[1735552550500,0.45565394,3425.7,3425.6,0.29242]
[1735552550704,0.18282103,3425.7,3425.6,0.29242]
[1735552550898,0.4513,3425.8,3425.3,1.167]
[1735552551101,0.4513,3425.8,3425.7,0.29242]
[1735552551297,0.63411194,3425.8,3425.7,0.29242]
[1735552551801,0.63411205,3425.8,3425.7,0.29242]
[1735552554103,0.6389015,3425.8,3425.7,0.29242]
[1735552556696,0.18281205,3425.8,3425.7,0.29242]
[1735552557993,0.18280692,3425.8,3425.4,2.33073803]
[1735552558199,0.63893351,3425.8,3425.7,0.29242]
[1735552558601,0.63893724,3425.8,3425.6,0.29243]
[1735552558799,3.66393618,3425.9,3425.8,0.29241]
[1735552559106,3.39060107,3425.9,3425.8,0.29241]
[1735552559408,3.84671985,3425.9,3425.8,0.73361]
[1735552559705,0.63891985,3425.9,3425.8,0.73361]
[1735552559897,3.84671985,3425.9,3425.8,0.73361]
[1735552560411,3.84672867,3425.9,3425.8,0.73361]
[1735552561005,3.39060229,3425.9,3425.8,0.29241]
[1735552561808,0.18280229,3425.9,3425.8,0.29241]
[1735552562803,2.47684195,3425.9,3425.8,0.29241]
[1735552563307,5.68464459,3425.9,3425.5,1.6072]
[1735552563609,0.29242,3425.7,3425.6,0.29242]
[1735552563808,0.47522493,3425.7,3425.6,0.29242]
[1735552564008,0.90992493,3425.7,3425.6,0.29242]
[1735552564314,3.20396459,3425.7,3425.5,1.6072]
[1735552564505,0.18280493,3425.6,3425.5,1.89963]
[1735552565507,2.47684459,3425.6,3425.5,1.89963]
[1735552566411,0.18280501,3425.6,3425.5,1.89963]
[1735552566813,0.18280295,3425.6,3425.5,1.89963]
[1735552569106,2.47684261,3425.6,3425.5,1.89963]
[1735552569506,2.47684393,3425.6,3425.5,1.89963]
[1735552569709,2.47684393,3425.6,3425.5,1.6072]
[1735552571207,2.47684393,3425.6,3425.5,2.89964]
[1735552572008,4.06422337,3425.6,3425.5,2.89964]
[1735552573209,3.89925353,3425.6,3425.5,2.89964]
[1735552573614,4.19168353,3425.6,3425.5,2.6072]
[1735552573815,4.31615353,3425.6,3425.5,2.6072]
[1735552574311,4.48113909,3425.6,3425.5,2.89964]
[1735552574711,4.48113909,3425.6,3425.5,2.6072]
[1735552574913,4.48113909,3425.6,3425.5,2.89964]
[1735552575116,4.48113909,3425.6,3425.5,2.6072]
[1735552575616,4.48114068,3425.6,3425.5,2.6072]
[1735552576117,4.48114068,3425.6,3425.5,2.89964]
[1735552577019,4.48114068,3425.6,3425.5,2.166]
[1735552577220,1.03848585,3425.6,3425.5,2.166]
[1735552577717,1.33091585,3425.6,3425.5,2.166]
[1735552578019,1.33091916,3425.6,3425.5,2.166]
[1735552578216,0.89215489,3425.6,3425.5,2.166]
[1735552578715,0.59972489,3425.6,3425.5,2.45844]
[1735552579917,1.03848916,3425.6,3425.5,2.45844]
[1735552580319,1.31223954,3425.6,3425.5,2.45844]
[1735552581513,0.43876427,3425.6,3425.5,2.45844]
[1735552581717,0.43876427,3425.6,3425.5,2.88694]
[1735552582111,0.43876427,3425.6,3425.5,2.45844]
[1735552582312,3.88303604,3425.6,3425.5,2.45844]
[1735552582513,4.17546604,3425.6,3425.5,2.166]
[1735552583613,5.75594769,3425.6,3425.5,2.166]
[1735552583823,5.46351769,3425.6,3425.5,2.166]
[1735552584019,5.46351769,3425.6,3425.5,2.45843]
[1735552584322,6.10290924,3425.6,3425.5,2.45843]
[1735552584523,6.10290924,3425.6,3425.5,2.166]
[1735552584711,6.39533924,3425.6,3425.5,2.166]
[1735552584910,6.39534231,3425.6,3425.5,2.45843]
[1735552585216,5.95657804,3425.6,3425.5,2.45843]
[1735552585416,5.31718342,3425.6,3425.5,2.45843]
[1735552585723,5.95657836,3425.6,3425.5,2.45843]
[1735552586111,6.39534263,3425.6,3425.5,1.29243]
[1735552586316,5.64634296,3425.6,3425.5,1.29243]
[1735552587423,1.05338954,3425.6,3425.5,5.87287923]
[1735552587622,0.62158954,3425.6,3425.5,5.87287923]
[1735552588015,0.62157507,3425.6,3425.5,5.87287923]
[1735552588518,0.62157507,3425.6,3425.5,1.29243]
[1735552589326,0.1828108,3425.6,3425.5,1.29243]
[1735552589720,0.1828108,3425.6,3425.5,8.16097767]
[1735552591120,3.63448391,3425.6,3425.5,8.16097767]
[1735552592325,3.63448391,3425.6,3425.5,9.1855368]
[1735552592529,4.07322113,3425.6,3425.5,9.1855368]
[1735552593628,4.07322113,3425.6,3425.5,7.86854767]
[1735552594126,0.91397435,3425.6,3425.5,7.86854767]
[1735552594327,0.91399092,3425.6,3425.5,7.86854767]
[1735552594823,0.91399253,3425.6,3425.5,7.86854767]
[1735552595330,5.06820873,3425.6,3425.5,1.0]
[1735552596324,6.09276786,3425.6,3425.5,1.0]
[1735552596926,6.53150508,3425.6,3425.5,0.3147]
[1735552597420,6.34867977,3425.6,3425.5,0.3147]
[1735552597628,6.53153312,3425.6,3425.5,0.3147]
[1735552598332,5.80186172,3425.6,3425.5,0.3147]
[1735552598723,6.25825216,3425.6,3425.5,0.3147]
[1735552599732,0.93167379,3425.6,3425.5,0.3147]
[1735552600331,0.47528335,3425.6,3425.5,0.3147]
[1735552601033,5.80186172,3425.6,3425.5,0.3147]
[1735552602528,5.61900837,3425.6,3425.5,0.3147]
[1735552606729,10.61900837,3425.6,3425.5,0.3147]
[1735552607231,0.29244,3425.4,3425.3,0.72689954]
[1735552607431,5.83203034,3425.4,3425.3,0.72689954]
[1735552607635,10.83203034,3425.4,3425.3,0.72689954]
[1735552608332,11.15860871,3425.4,3425.3,0.72689954]
[1735552609336,11.39409115,3425.4,3425.3,0.72689954]
[1735552613736,16.39409115,3425.4,3425.3,0.72689954]
[1735552614540,11.39409115,3425.4,3425.3,0.72689954]
[1735552617339,17.13363118,3425.4,3425.3,0.72689954]
[1735552619443,16.89814874,3425.4,3425.3,0.72689954]
[1735552624442,11.15860871,3425.4,3425.3,0.72689954]
[1735552624649,8.82681837,3425.4,3425.3,0.72689954]
[1735552625645,3.93897722,3425.4,3425.3,0.72689954]
[1735552625947,3.93897722,3425.4,3425.3,1.01934954]
[1735552625948,3.70972619,3425.4,3425.3,1.01934954]
[1735552626154,0.29244,3425.4,3425.3,1.01934954]
[1735552626339,5.73954003,3425.5,3425.3,0.72689954]
[1735552626543,5.73954003,3425.5,3425.4,0.4367]
[1735552627248,2.58742398,3425.5,3425.4,0.72914]
[1735552627750,3.22632928,3425.5,3425.4,0.72914]
[1735552628446,0.9313453,3425.5,3425.4,0.72914]
[1735552629043,0.47526403,3425.5,3425.4,0.72914]
[1735552629450,0.47526403,3425.5,3425.4,1.59634]
[1735552630049,0.9313453,3425.5,3425.4,1.3039]
[1735552631351,3.22632928,3425.5,3425.4,1.3039]
[1735552632351,0.9313453,3425.5,3425.4,1.3039]
[1735552633852,3.917748,3425.5,3425.4,0.4542]
[1735552634051,4.807148,3425.5,3425.4,0.4542]
[1735552635153,5.95463999,3425.5,3425.4,0.4542]
[1735552636453,5.95463999,3425.5,3425.3,0.72689954]
[1735552636454,0.29244,3425.4,3425.3,0.72689954]
[1735552636754,3.68307202,3425.4,3425.3,0.72689954]
[1735552636954,3.68310031,3425.4,3425.3,0.72689954]
[1735552637757,14.28216295,3425.4,3425.3,0.72689954]
[1735552639354,0.29247,3425.1,3425.0,0.4283]
[1735552641058,5.34426305,3425.1,3425.0,0.72078]
[1735552641360,4.59592169,3425.1,3425.0,0.72078]
[1735552642661,2.29791299,3425.1,3425.0,0.72078]
[1735552644863,1.61251299,3425.1,3425.0,0.72078]
[1735552646764,3.50025,3425.4,3425.2,0.29245]
[1735552646966,3.50025,3425.4,3425.3,0.29245]
[1735552648567,3.2078,3425.4,3425.1,1.161]
[1735552648767,0.29247,3425.1,3425.0,0.72077]
[1735552649860,0.89400923,3425.3,3425.1,0.29246]
[1735552649861,0.29246,3425.2,3425.1,0.29246]
[1735552650067,0.29246,3425.2,3425.0,0.4283]
[1735552650068,0.29247,3425.1,3425.0,0.4283]
[1735552652469,0.29247,3425.1,3425.0,0.72078]
[1735552652675,3.73905386,3425.2,3425.1,0.29247]
[1735552653968,3.44659386,3425.2,3425.1,0.29247]
[1735552654865,3.44659386,3425.2,3424.6,4.58250546]
[1735552655067,3.90273562,3425.2,3424.9,0.70751]
[1735552655270,3.95642176,3425.0,3424.9,0.70751]
[1735552655570,3.50028,3425.0,3424.9,0.70751]
[1735552656669,8.53508151,3425.0,3424.9,0.70751]
[1735552661972,10.86687185,3425.0,3424.9,0.02231]
[1735552662180,0.29251,3424.6,3424.5,1.0]
[1735552662480,5.83210034,3424.6,3424.5,1.0]
[1735552663485,11.07067207,3424.6,3424.5,1.0]
[1735552663879,11.52670803,3424.6,3424.5,1.0]
[1735552664570,11.32292238,3424.6,3424.5,1.0]
[1735552664987,10.86688642,3424.6,3424.5,1.0]
[1735552665680,6.27098016,3424.6,3424.5,1.0]
[1735552666076,11.27098016,3424.6,3424.5,1.0]
[1735552666380,11.27098016,3424.6,3424.5,0.3147]
[1735552666583,0.29257,3423.9,3423.8,4.58250546]
[1735552666773,5.83216034,3423.9,3423.8,4.58250546]
[1735552667184,5.83216034,3423.9,3423.5,0.4496]
[1735552667185,0.2926,3423.6,3423.5,0.4496]
[1735552668080,0.2926,3423.6,3423.4,4.58250546]
[1735552668081,2.33179034,3423.6,3423.4,4.58250546]
[1735552668284,3.50041,3423.5,3423.4,4.58250546]
[1735552669187,0.29263,3423.2,3423.1,0.8871]
[1735552670389,0.29263,3423.2,3423.1,0.4496]
[1735552676890,3.50043,3423.2,3423.1,0.4496]
[1735552682592,3.91173,3423.2,3423.1,0.4496]
[1735552683704,3.50043,3423.2,3423.1,0.4496]
[1735552686705,3.50043,3423.2,3423.1,0.74224]
[1735552686900,3.50043,3423.2,3423.1,0.4496]
[1735552687296,3.50043,3423.2,3423.1,0.74224]
[1735552687493,3.50043,3423.2,3423.1,0.4496]
[1735552687901,0.73163,3423.0,3421.8,0.2928]
[1735552688106,0.29269,3422.5,3422.2,1.17201]
[1735552688300,3.2078,3422.6,3422.3,0.2927]
[1735552688301,3.50049,3422.6,3422.3,0.2927]
[1735552688500,3.50049,3422.6,3422.4,0.2927]
[1735552689005,3.50049,3422.6,3422.5,0.4522]
[1735552689305,3.50048,3422.6,3422.5,0.4522]
[1735552693006,3.2078,3422.6,3422.5,0.4522]
[1735552693204,3.2078,3422.6,3422.5,0.74489]
[1735552694101,3.2078,3422.6,3422.5,0.4522]
[1735552694302,3.50048,3422.6,3422.5,0.4522]
[1735552696414,0.29271,3422.3,3422.2,0.8793]
[1735552696706,0.29271,3422.3,3422.2,0.8647]
[1735552699011,0.29273,3422.0,3421.9,0.29274]
[1735552699211,0.29273,3422.0,3421.9,1.15994]
[1735552700513,0.29273,3422.0,3421.9,0.8672]
[1735552700805,0.29273,3422.0,3421.9,1.15994]
[1735552701810,0.29273,3422.0,3421.9,0.8672]
[1735552702214,0.29273,3422.0,3421.9,1.15994]
[1735552703012,3.2078,3422.2,3421.9,0.8672]
[1735552703308,3.50052,3422.2,3422.1,0.29272]
[1735552703611,3.2078,3422.2,3422.1,0.29272]
[1735552703811,3.50052,3422.2,3422.1,0.29272]
[1735552704514,0.29273,3422.1,3422.0,0.29273]
[1735552705410,0.29273,3422.0,3421.9,1.15994]
[1735552708315,3.2078,3422.2,3421.9,0.8672]
[1735552708515,3.50052,3422.2,3422.1,0.29272]
[1735552710115,0.29272,3422.2,3422.1,0.29272]
[1735552710310,5.53959034,3422.2,3421.6,1.0]
[1735552710507,3.50055,3421.8,3421.7,0.4362]
[1735552711517,3.2078,3421.8,3421.7,0.72896]
[1735552711718,3.50055,3421.8,3421.7,0.72896]
[1735552712117,3.2078,3421.8,3421.7,0.72896]
[1735552714810,0.29273,3422.1,3422.0,0.29273]
[1735552715915,0.29274,3422.0,3421.9,0.29274]
[1735552718028,3.50052,3422.2,3422.1,0.29272]
[1735552718230,3.2078,3422.2,3421.7,0.4362]
[1735552718422,3.50052,3422.2,3422.1,0.29272]
[1735552720624,3.2078,3422.2,3422.1,0.29272]
[1735552722724,3.2078,3422.2,3422.1,0.73112]
[1735552723529,3.2078,3422.2,3422.1,5.31362546]
[1735552724530,3.2078,3422.2,3422.1,0.73112]
[1735552727332,3.2078,3422.2,3422.1,5.31362546]
[1735552729734,3.2078,3422.2,3422.1,0.73112]
[1735552730935,3.2078,3422.2,3422.1,5.31362546]
[1735552733932,3.2078,3422.2,3422.1,0.73112]
[1735552735330,3.2078,3422.2,3422.1,7.59966767]
[1735552736635,3.2078,3422.2,3422.1,0.73112]
[1735552737137,3.50052,3422.2,3422.1,0.29272]
[1735552737536,3.50052,3422.2,3422.1,0.71062]
[1735552737932,3.2078,3422.2,3422.1,0.71062]
[1735552738841,3.2078,3422.2,3422.1,7.57916767]
[1735552739241,3.50052,3422.2,3422.1,7.57916767]
[1735552741738,3.50052,3422.2,3422.1,0.71062]
[1735552741945,3.50052,3422.2,3422.1,5.30261601]
[1735552742144,3.50052,3422.2,3422.1,4.59199601]
[1735552743345,0.29272,3422.1,3422.0,4.88472601]
[1735552743545,1.73603037,3422.1,3422.0,4.88472601]
[1735552744549,5.62897923,3422.1,3422.0,0.29273]
[1735552745646,3.89294886,3422.1,3422.0,0.29273]
[1735552745846,3.89294886,3422.1,3422.0,1.16153]
[1735552746046,3.89294886,3422.1,3422.0,8.96132601]
[1735552746047,3.45374643,3422.1,3422.0,8.96132601]
[1735552747354,3.74642643,3422.6,3422.5,0.29269]
[1735552748255,3.45374643,3422.6,3422.5,0.29269]
[1735552748555,0.43914083,3422.6,3422.5,0.29269]
[1735552749155,0.73182083,3422.6,3422.5,0.29269]
[1735552749657,0.73182083,3422.6,3422.3,4.58836193]
[1735552749658,2.77436076,3422.7,3422.3,4.58836193]
[1735552749858,0.2927,3422.5,3422.4,0.29269]
[1735552750653,3.74543062,3422.5,3422.4,0.29269]
[1735552751954,0.7318608,3422.5,3422.4,0.29269]
[1735552753163,0.4391608,3422.5,3422.4,0.29269]
[1735552753462,0.29269,3422.6,3422.3,4.58836193]
[1735552753662,0.29269,3422.6,3422.5,0.29269]
[1735552754761,4.18445717,3422.6,3422.5,0.29269]
[1735552756061,0.7318508,3422.6,3422.5,0.29269]
[1735552757058,4.59250506,3422.7,3422.3,4.58836193]
[1735552757059,5.03166586,3422.7,3422.3,4.58836193]
[1735552757260,0.2927,3422.5,3422.4,0.29269]
[1735552758056,0.29269,3422.6,3422.5,0.29268]
[1735552758456,7.80030506,3422.8,3422.4,4.58836193]
[1735552758758,0.29268,3422.7,3422.6,0.29267]
[1735552759962,3.50048,3422.7,3422.6,0.29267]
[1735552761165,3.93962401,3422.7,3422.6,0.29267]
[1735552762163,0.29269,3422.6,3422.5,0.29268]
[1735552762366,0.29269,3422.6,3422.5,4.88104193]
[1735552762562,3.50049,3422.6,3422.5,4.88104193]
[1735552763865,3.93963401,3422.6,3422.5,4.88104193]
[1735552766367,3.93963401,3422.6,3422.5,4.58836193]
[1735552766563,3.93963401,3422.6,3422.5,4.88105193]
[1735552767163,3.93963401,3422.6,3422.5,4.58836193]
[1735552767564,0.29269,3422.5,3422.4,4.88105193]
[1735552768869,4.1863326,3422.5,3422.4,0.29269]
[1735552770972,4.1863326,3422.5,3422.4,4.88520207]
[1735552774277,3.8936426,3422.5,3422.4,4.88520207]
[1735552776266,4.1863326,3422.5,3422.4,4.88520207]
[1735552777381,4.1863326,3422.5,3422.4,0.29269]
[1735552777672,3.8936426,3422.5,3422.3,6.88254289]
[1735552777873,0.2927,3422.4,3422.3,7.17524289]
[1735552778370,4.1863426,3422.5,3422.4,0.2927]
[1735552780073,4.1863426,3422.5,3422.4,4.88853851]
[1735552781672,4.1863426,3422.5,3422.4,0.2927]
[1735552783874,0.2927,3422.4,3422.3,7.17524289]
[1735552784375,4.1863426,3422.5,3422.4,0.2927]
[1735552784573,4.1863426,3422.5,3422.4,4.88796725]
[1735552786070,4.1863426,3422.5,3422.4,0.2927]
[1735552788680,4.1863426,3422.5,3422.4,4.88734887]
[1735552789877,0.73184401,3422.5,3422.4,0.2927]
[1735552790477,0.2927,3422.4,3422.3,7.17524289]
[1735552790878,1.5913,3422.4,3422.3,7.17524289]
[1735552791178,1.5913,3422.4,3422.3,0.2927]